fUST/lending_fUST_20250814
["ID","MTS","AMOUNT","RATE_DAILY","PERIOD"]
[379060187,1755111057274,-460.0,0.00019452,2]
[379060188,1755111057283,-460.0,0.00019452,2]
[379060189,1755111057293,-460.0,0.00019452,2]
[379060190,1755111057302,-460.0,0.00019452,2]
[379060191,1755111057311,-460.0,0.00019452,2]
[379060192,1755111057320,-460.0,0.00019452,2]
[379060193,1755111057331,-460.0,0.00019452,2]
[379060194,1755111057340,-162.27,0.00019452,2]
[379060195,1755111057350,-460.0,0.00019452,2]
[379060196,1755111057361,-733.41,0.00019452,2]
[379060197,1755111057370,-460.0,0.00019452,2]
[379060198,1755111057379,-460.0,0.00019452,2]
[379060199,1755111057388,-460.0,0.00019452,2]
[379060200,1755111057397,-691.67,0.00019452,2]
[379060201,1755111057410,-460.0,0.00019452,2]
[379060202,1755111057419,-460.0,0.00019452,2]
[379060203,1755111057428,-460.0,0.00019452,2]
[379060204,1755111057437,-1094.83,0.00019452,2]
[379060205,1755111057447,-638.01,0.00019452,2]
[379060206,1755111057456,-1920.52,0.00019452,2]
[379060207,1755111057465,-460.0,0.00019452,2]
[379060208,1755111057475,-460.0,0.00019452,2]
[379060209,1755111057484,-460.0,0.00019452,2]
[379060210,1755111057494,-460.0,0.00019452,2]
[379060211,1755111057503,-460.0,0.00019452,2]
[379060212,1755111057512,-460.0,0.00019452,2]
[379060213,1755111057521,-460.0,0.00019452,2]
[379060214,1755111057531,-460.0,0.00019452,2]
[379060215,1755111057540,-460.0,0.00019452,2]
[379060216,1755111057550,-460.0,0.00019452,2]
[379060217,1755111057560,-460.0,0.00019452,2]
[379060218,1755111057572,-551.2693758,0.00019452,2]
[379060219,1755111057582,-460.0,0.00019452,2]
[379060220,1755111057591,-712.21,0.00019452,2]
[379060221,1755111057601,-460.0,0.00019452,2]
[379060222,1755111057610,-460.0,0.00019452,2]
[379060223,1755111057619,-460.0,0.00019452,2]
[379060224,1755111057629,-474.92,0.00019452,2]
[379060225,1755111057638,-460.0,0.00019452,2]
[379060226,1755111057647,-460.0,0.00019452,2]
[379060227,1755111057657,-460.0,0.00019452,2]
[379060228,1755111057666,-476.62,0.00019452,2]
[379060229,1755111057676,-460.0,0.00019452,2]
[379060230,1755111057685,-460.0,0.00019452,2]
[379060231,1755111057694,-460.0,0.00019452,2]
[379060232,1755111057703,-460.0,0.00019452,2]
[379060233,1755111057713,-460.0,0.00019452,2]
[379060234,1755111057722,-460.0,0.00019452,2]
[379060235,1755111057732,-460.0,0.00019452,2]
[379060236,1755111057744,-460.0,0.00019452,2]
[379060237,1755111057759,-460.0,0.00019452,2]
[379060238,1755111057769,-460.0,0.00019452,2]
[379060239,1755111057778,-460.0,0.00019452,2]
[379060240,1755111057790,-460.0,0.00019452,2]
[379060241,1755111057799,-460.0,0.00019452,2]
[379060242,1755111057809,-460.0,0.00019452,2]
[379060243,1755111057819,-3000.81,0.00019452,2]
[379060244,1755111057828,-460.0,0.00019452,2]
[379060245,1755111057839,-460.0,0.00019452,2]
[379060246,1755111057848,-460.0,0.00019452,2]
[379060247,1755111057857,-460.0,0.00019452,2]
[379060248,1755111057867,-460.0,0.00019452,2]
[379060249,1755111057876,-460.0,0.00019452,2]
[379060250,1755111057884,-566.38,0.00019452,2]
[379060251,1755111057893,-460.0,0.00019452,2]
[379060252,1755111057902,-460.0,0.00019452,2]
[379060253,1755111057912,-460.0,0.00019452,2]
[379060254,1755111057921,-549.06,0.00019452,2]
[379060255,1755111057932,-460.0,0.00019452,2]
[379060256,1755111057943,-953.47,0.00019452,2]
[379060257,1755111057952,-460.0,0.00019452,2]
[379060258,1755111057961,-504.13,0.00019452,2]
[379060259,1755111057971,-460.0,0.00019452,2]
[379060260,1755111057980,-460.0,0.00019452,2]
[379060261,1755111057989,-460.0,0.00019452,2]
[379060262,1755111057998,-460.0,0.00019452,2]
[379060263,1755111058008,-460.0,0.00019452,2]
[379060264,1755111058017,-915.64,0.00019452,2]
[379060265,1755111058027,-460.0,0.00019452,2]
[379060266,1755111058036,-460.0,0.00019452,2]
[379060267,1755111058045,-460.0,0.00019452,2]
[379060268,1755111058054,-594.92,0.00019452,2]
[379060269,1755111058063,-460.0,0.00019452,2]
[379060270,1755111058073,-460.0,0.00019452,2]
[379060271,1755111058082,-460.0,0.00019452,2]
[379060272,1755111058091,-460.0,0.00019452,2]
[379060273,1755111058100,-1704.74,0.00019452,2]
[379060274,1755111058109,-460.0,0.00019452,2]
[379060275,1755111058119,-460.0,0.00019452,2]
[379060276,1755111058128,-460.0,0.00019452,2]
[379060277,1755111058138,-867.65,0.00019452,2]
[379060278,1755111058147,-500.0,0.00019452,2]
[379060279,1755111058158,-611.03,0.00019452,2]
[379060280,1755111058167,-460.0,0.00019452,2]
[379060281,1755111058177,-460.0,0.00019452,2]
[379060282,1755111058186,-460.0,0.00019452,2]
[379060283,1755111058196,-460.0,0.00019452,2]
[379060284,1755111058205,-460.0,0.00019452,2]
[379060285,1755111058215,-460.0,0.00019452,2]
[379060286,1755111058224,-1488.0,0.00019452,2]
[379060287,1755111058233,-460.0,0.00019452,2]
[379060288,1755111058242,-368.34013408,0.00019452,2]
[379060289,1755111058252,-460.0,0.00019452,2]
[379060290,1755111058261,-459.3030443,0.00019452,2]
[379060291,1755111058270,-1414.82,0.00019452,2]
[379060292,1755111058283,-460.0,0.00019452,2]
[379060293,1755111058294,-460.0,0.00019452,2]
[379060294,1755111058303,-460.0,0.00019452,2]
[379060295,1755111058313,-460.0,0.00019452,2]
[379060296,1755111058322,-460.0,0.00019452,2]
[379060297,1755111058331,-315.72091378,0.00019452,2]
[379060298,1755111058340,-819.97,0.00019452,2]
[379060299,1755111058349,-460.0,0.00019452,2]
[379060300,1755111058359,-460.0,0.00019452,2]
[379060301,1755111058368,-460.0,0.00019452,2]
[379060302,1755111058384,-460.0,0.00019452,2]
[379060303,1755111058399,-460.0,0.00019452,2]
[379060304,1755111058410,-1362.37,0.00019452,2]
[379060305,1755111058419,-563.12,0.00019452,2]
[379060306,1755111058428,-460.0,0.00019452,2]
[379060307,1755111058438,-460.0,0.00019452,2]
[379060308,1755111058448,-214.02765958,0.00019452,2]
[379060309,1755111058457,-460.0,0.00019452,2]
[379060310,1755111058466,-460.0,0.00019452,2]
[379060311,1755111058476,-460.0,0.00019452,2]
[379060312,1755111058485,-1112.21,0.00019452,2]
[379060313,1755111058494,-2365.36,0.00019452,2]
[379060314,1755111058505,-460.0,0.00019452,2]
[379060315,1755111058515,-460.0,0.00019452,2]
[379060316,1755111058524,-460.0,0.00019452,2]
[379060317,1755111058533,-460.0,0.00019452,2]
[379060318,1755111058652,-2532.46,0.00019452,2]
[379060319,1755111058662,-460.0,0.00019452,2]
[379060320,1755111058671,-610.09,0.00019452,2]
[379060321,1755111058681,-460.0,0.00019452,2]
[379060322,1755111058691,-460.0,0.00019452,2]
[379060323,1755111058700,-460.0,0.00019452,2]
[379060324,1755111058710,-460.0,0.00019452,2]
[379060325,1755111058719,-460.0,0.00019452,2]
[379060326,1755111058728,-6923.07,0.00019452,2]
[379060327,1755111058737,-584.25818494,0.00019452,2]
[379060328,1755111058751,-460.0,0.00019452,2]
[379060329,1755111058760,-1181.31,0.00019452,2]
[379060330,1755111058769,-1108.84,0.00019452,2]
[379060331,1755111058778,-460.0,0.00019452,2]
[379060332,1755111058787,-1449.1,0.00019452,2]
[379060333,1755111058798,-2125.73,0.00019452,2]
[379060334,1755111058807,-606.3,0.00019452,2]
[379060335,1755111058817,-460.0,0.00019452,2]
[379060336,1755111058827,-460.0,0.00019452,2]
[379060337,1755111058837,-627.37,0.00019452,2]
[379060338,1755111058846,-460.0,0.00019452,2]
[379060339,1755111058867,-537.36,0.00019452,2]
[379060340,1755111058885,-460.0,0.00019452,2]
[379060341,1755111058894,-460.0,0.00019452,2]
[379060342,1755111058903,-460.0,0.00019452,2]
[379060343,1755111058914,-242.7761816,0.00019452,2]
[379060344,1755111058923,-1090.52,0.00019452,2]
[379060345,1755111058932,-460.0,0.00019452,2]
[379060346,1755111058942,-460.0,0.00019452,2]
[379060347,1755111058951,-460.0,0.00019452,2]
[379060348,1755111058960,-460.0,0.00019452,2]
[379060349,1755111058969,-460.0,0.00019452,2]
[379060350,1755111058978,-460.0,0.00019452,2]
[379060351,1755111058988,-934.67,0.00019452,2]
[379060352,1755111058998,-460.0,0.00019452,2]
[379060353,1755111059008,-717.76,0.00019452,2]
[379060354,1755111059017,-1180.89,0.00019452,2]
[379060355,1755111059027,-460.0,0.00019452,2]
[379060356,1755111059036,-460.0,0.00019452,2]
[379060357,1755111059045,-460.0,0.00019452,2]
[379060358,1755111059055,-460.0,0.00019452,2]
[379060359,1755111059064,-460.0,0.00019452,2]
[379060360,1755111059074,-549.84,0.00019452,2]
[379060361,1755111059084,-460.0,0.00019452,2]
[379060362,1755111059093,-460.0,0.00019452,2]
[379060363,1755111059103,-460.0,0.00019452,2]
[379060364,1755111059112,-460.0,0.00019452,2]
[379060365,1755111059121,-460.0,0.00019452,2]
[379060366,1755111059131,-460.0,0.00019452,2]
[379060367,1755111059140,-217.48729987,0.00019452,2]
[379060368,1755111059149,-460.0,0.00019452,2]
[379060369,1755111059160,-461.77495199,0.00019452,2]
[379060370,1755111059169,-460.0,0.00019452,2]
[379060371,1755111059178,-460.0,0.00019452,2]
[379060372,1755111059187,-460.0,0.00019452,2]
[379060373,1755111059196,-460.0,0.00019452,2]
[379060374,1755111059205,-460.0,0.00019452,2]
[379060375,1755111059214,-917.23,0.00019452,2]
[379060376,1755111059224,-1083.56,0.00019452,2]
[379060377,1755111059234,-460.0,0.00019452,2]
[379060378,1755111059244,-460.0,0.00019452,2]
[379060379,1755111059253,-460.0,0.00019452,2]
[379060380,1755111059263,-460.0,0.00019452,2]
[379060381,1755111059274,-460.0,0.00019452,2]
[379060382,1755111059283,-619.38,0.00019452,2]
[379060383,1755111059293,-460.0,0.00019452,2]
[379060384,1755111059303,-1703.01,0.00019452,2]
[379060385,1755111059312,-460.0,0.00019452,2]
[379060386,1755111059322,-866.89,0.00019452,2]
[379060387,1755111059331,-460.0,0.00019452,2]
[379060388,1755111059342,-460.0,0.00019452,2]
[379060389,1755111059351,-460.0,0.00019452,2]
[379060390,1755111059360,-460.0,0.00019452,2]
[379060391,1755111059369,-460.0,0.00019452,2]
[379060392,1755111059379,-375.7264768,0.00019452,2]
[379060393,1755111059388,-522.0,0.00019452,2]
[379060394,1755111059397,-463.57617657,0.00019452,2]
[379060395,1755111059408,-513.96,0.00019452,2]
[379060396,1755111059417,-806.51,0.00019452,2]
[379060397,1755111059426,-460.0,0.00019452,2]
[379060398,1755111059436,-460.0,0.00019452,2]
[379060399,1755111059445,-460.0,0.00019452,2]
[379060400,1755111059455,-566.33,0.00019452,2]
[379060401,1755111059464,-460.0,0.00019452,2]
[379060402,1755111059474,-460.0,0.00019452,2]
[379060403,1755111059483,-460.0,0.00019452,2]
[379060404,1755111059493,-509.74,0.00019452,2]
[379060405,1755111059502,-460.0,0.00019452,2]
[379060406,1755111059511,-460.0,0.00019452,2]
[379060407,1755111059521,-672.54,0.00019452,2]
[379060408,1755111059530,-460.0,0.00019452,2]
[379060409,1755111059539,-460.0,0.00019452,2]
[379060410,1755111059548,-460.0,0.00019452,2]
[379060411,1755111059558,-791.56,0.00019452,2]
[379060412,1755111059567,-460.0,0.00019452,2]
[379060413,1755111059576,-460.0,0.00019452,2]
[379060414,1755111059585,-460.0,0.00019452,2]
[379060415,1755111059595,-2530.94,0.00019452,2]
[379060416,1755111059604,-1703.22,0.00019452,2]
[379060417,1755111059613,-460.0,0.00019452,2]
[379060418,1755111059622,-460.0,0.00019452,2]
[379060419,1755111059632,-1072.44,0.00019452,2]
[379060420,1755111059641,-460.0,0.00019452,2]
[379060421,1755111059650,-460.0,0.00019452,2]
[379060422,1755111059659,-474.95051376,0.00019452,2]
[379060423,1755111059668,-460.0,0.00019452,2]
[379060424,1755111059677,-3405.29,0.00019452,2]
[379060425,1755111059688,-460.00618143,0.00019452,2]
[379060426,1755111059698,-460.0,0.00019452,2]
[379060427,1755111059707,-460.0,0.00019452,2]
[379060428,1755111059716,-1407.44,0.00019452,2]
[379060429,1755111059725,-460.0,0.00019452,2]
[379060430,1755111059735,-460.0,0.00019452,2]
[379060431,1755111059748,-460.0,0.00019452,2]
[379060432,1755111059757,-460.0,0.00019452,2]
[379060433,1755111059766,-460.0,0.00019452,2]
[379060434,1755111059775,-1442.51,0.00019452,2]
[379060435,1755111059784,-184.80392497,0.00019452,2]
[379060436,1755111059793,-1025.84,0.00019452,2]
[379060437,1755111059802,-460.0,0.00019452,2]
[379060438,1755111059811,-583.58979217,0.00019452,2]
[379060439,1755111059822,-460.0,0.00019452,2]
[379060440,1755111059831,-460.0,0.00019452,2]
[379060441,1755111059841,-460.0,0.00019452,2]
[379060442,1755111059850,-1471.75,0.00019452,2]
[379060443,1755111059859,-460.0,0.00019452,2]
[379060444,1755111059868,-656.82,0.00019452,2]
[379060445,1755111059877,-280.59169717,0.00019452,2]
[379060446,1755111059886,-467.85,0.00019452,2]
[379060447,1755111059895,-460.0,0.00019452,2]
[379060448,1755111059905,-460.0,0.00019452,2]
[379060449,1755111059915,-1851.38,0.00019452,2]
[379060450,1755111059924,-1825.28,0.00019452,2]
[379060451,1755111059933,-460.0,0.00019452,2]
[379060452,1755111059942,-460.0,0.00019452,2]
[379060453,1755111059952,-460.0,0.00019452,2]
[379060454,1755111059961,-472.36308421,0.00019452,2]
[379060455,1755111059970,-460.0,0.00019452,2]
[379060456,1755111059979,-460.0,0.00019452,2]
[379060457,1755111059988,-460.0,0.00019452,2]
[379060458,1755111059997,-460.0,0.00019452,2]
[379060459,1755111060007,-460.0,0.00019452,2]
[379060460,1755111060016,-689.26,0.00019452,2]
[379060461,1755111060026,-1735.32,0.00019452,2]
[379060462,1755111060035,-4087.19,0.00019452,2]
[379060463,1755111060045,-460.0,0.00019452,2]
[379060464,1755111060055,-1834.93,0.00019452,2]
[379060465,1755111060065,-460.0,0.00019452,2]
[379060466,1755111060075,-460.0,0.00019452,2]
[379060467,1755111060085,-3792.65,0.00019452,2]
[379060468,1755111060095,-460.0,0.00019452,2]
[379060469,1755111060104,-460.0,0.00019452,2]
[379060470,1755111060114,-460.0,0.00019452,2]
[379060471,1755111060124,-460.00671985,0.00019452,2]
[379060472,1755111060134,-543.08,0.00019452,2]
[379060473,1755111060145,-1284.61,0.00019452,2]
[379060474,1755111060155,-1670.22,0.00019452,2]
[379060475,1755111060166,-662.4,0.00019452,2]
[379060476,1755111060176,-460.0,0.00019452,2]
[379060477,1755111060187,-767.42,0.00019452,2]
[379060478,1755111060197,-619.38,0.00019452,2]
[379060479,1755111060207,-975.75,0.00019452,2]
[379060480,1755111060217,-628.02,0.00019452,2]
[379060481,1755111060227,-460.0,0.00019452,2]
[379060482,1755111060238,-460.0,0.00019452,2]
[379060483,1755111060247,-460.0,0.00019452,2]
[379060484,1755111060257,-824.3,0.00019452,2]
[379060485,1755111060266,-460.0,0.00019452,2]
[379060486,1755111060276,-4267.69,0.00019452,2]
[379060487,1755111060285,-460.0,0.00019452,2]
[379060488,1755111060295,-1880.81,0.00019452,2]
[379060489,1755111060304,-460.0,0.00019452,2]
[379060490,1755111060314,-792.78,0.00019452,2]
[379060491,1755111060324,-460.0,0.00019452,2]
[379060492,1755111060333,-460.0,0.00019452,2]
[379060493,1755111060342,-460.0,0.00019452,2]
[379060494,1755111060351,-460.0,0.00019452,2]
[379060495,1755111060361,-710.88,0.00019452,2]
[379060496,1755111060370,-1405.32,0.00019452,2]
[379060497,1755111060380,-6760.17,0.00019452,2]
[379060498,1755111060390,-460.0,0.00019452,2]
[379060499,1755111060399,-461.93068257,0.00019452,2]
[379060500,1755111060408,-460.0,0.00019452,2]
[379060501,1755111060418,-460.0,0.00019452,2]
[379060502,1755111060428,-1971.62,0.00019452,2]
[379060503,1755111060437,-460.0,0.00019452,2]
[379060504,1755111060446,-666.1,0.00019452,2]
[379060505,1755111060456,-460.0,0.00019452,2]
[379060506,1755111060465,-659.1,0.00019452,2]
[379060507,1755111060474,-460.0,0.00019452,2]
[379060508,1755111060483,-460.0,0.00019452,2]
[379060509,1755111060493,-460.0,0.00019452,2]
[379060510,1755111060502,-460.0,0.00019452,2]
[379060511,1755111060511,-460.0,0.00019452,2]
[379060512,1755111060520,-460.0,0.00019452,2]
[379060513,1755111060529,-460.0,0.00019452,2]
[379060514,1755111060539,-460.0,0.00019452,2]
[379060515,1755111060548,-460.0,0.00019452,2]
[379060516,1755111060558,-520.81,0.00019452,2]
[379060517,1755111060567,-460.0,0.00019452,2]
[379060518,1755111060577,-774.35,0.00019452,2]
[379060519,1755111060587,-460.0,0.00019452,2]
[379060520,1755111060597,-460.0,0.00019452,2]
[379060521,1755111060606,-460.0,0.00019452,2]
[379060522,1755111060616,-475.43586001,0.00019452,2]
[379060523,1755111060625,-460.0,0.00019452,2]
[379060524,1755111060635,-460.0,0.00019452,2]
[379060525,1755111060644,-460.0,0.00019452,2]
[379060526,1755111060655,-462.63785801,0.00019452,2]
[379060527,1755111060775,-460.0,0.00019452,2]
[379060528,1755111060785,-460.0,0.00019452,2]
[379060529,1755111060795,-470.24,0.00019452,2]
[379060530,1755111060804,-1972.82,0.00019452,2]
[379060531,1755111060813,-460.0,0.00019452,2]
[379060532,1755111060823,-780.89,0.00019452,2]
[379060533,1755111060835,-2762.44,0.00019452,2]
[379060534,1755111060845,-460.0,0.00019452,2]
[379060535,1755111060854,-460.0,0.00019452,2]
[379060536,1755111060863,-460.0,0.00019452,2]
[379060537,1755111060873,-389.50423238,0.00019452,2]
[379060538,1755111060882,-1093.52,0.00019452,2]
[379060539,1755111060891,-460.0,0.00019452,2]
[379060540,1755111060900,-548.73,0.00019452,2]
[379060541,1755111060911,-460.0,0.00019452,2]
[379060542,1755111060920,-460.0,0.00019452,2]
[379060543,1755111060929,-460.0,0.00019452,2]
[379060544,1755111060939,-1726.75,0.00019452,2]
[379060545,1755111060948,-460.0,0.00019452,2]
[379060546,1755111060956,-460.0,0.00019452,2]
[379060547,1755111060966,-1920.17,0.00019452,2]
[379060548,1755111060975,-1945.14,0.00019452,2]
[379060549,1755111060985,-400.0,0.00019452,2]
[379060550,1755111060994,-460.0,0.00019452,2]
[379060551,1755111061003,-460.0,0.00019452,2]
[379060552,1755111061012,-499.4,0.00019452,2]
[379060553,1755111061021,-460.0,0.00019452,2]
[379060554,1755111061031,-785.95,0.00019452,2]
[379060555,1755111061040,-460.0,0.00019452,2]
[379060556,1755111061050,-460.0,0.00019452,2]
[379060557,1755111061059,-1074.73,0.00019452,2]
[379060558,1755111061068,-460.0,0.00019452,2]
[379060559,1755111061077,-460.0,0.00019452,2]
[379060560,1755111061087,-2050.41,0.00019452,2]
[379060561,1755111061096,-460.0,0.00019452,2]
[379060562,1755111061105,-460.0,0.00019452,2]
[379060563,1755111061115,-460.0,0.00019452,2]
[379060564,1755111061125,-460.0,0.00019452,2]
[379060565,1755111061135,-460.0,0.00019452,2]
[379060566,1755111061145,-460.0,0.00019452,2]
[379060567,1755111061155,-460.0,0.00019452,2]
[379060568,1755111061165,-388.61378018,0.00019452,2]
[379060569,1755111061175,-460.0,0.00019452,2]
[379060570,1755111061185,-460.0,0.00019452,2]
[379060571,1755111061194,-460.0,0.00019452,2]
[379060572,1755111061204,-560.82,0.00019452,2]
[379060573,1755111061214,-10453.66,0.00019452,2]
[379060574,1755111061224,-460.0,0.00019452,2]
[379060575,1755111061234,-798.25,0.00019452,2]
[379060576,1755111061244,-460.0,0.00019452,2]
[379060577,1755111061254,-460.0,0.00019452,2]
[379060578,1755111061263,-1718.34,0.00019452,2]
[379060579,1755111061273,-771.17,0.00019452,2]
[379060580,1755111061283,-460.0,0.00019452,2]
[379060581,1755111061292,-460.0,0.00019452,2]
[379060582,1755111061302,-460.0,0.00019452,2]
[379060583,1755111061312,-460.0,0.00019452,2]
[379060584,1755111061322,-472.4,0.00019452,2]
[379060585,1755111061332,-460.0,0.00019452,2]
[379060586,1755111061341,-460.0,0.00019452,2]
[379060587,1755111061350,-460.0,0.00019452,2]
[379060588,1755111061360,-786.58,0.00019452,2]
[379060589,1755111061369,-3167.84,0.00019452,2]
[379060590,1755111061379,-460.0,0.00019452,2]
[379060591,1755111061388,-510.58,0.00019452,2]
[379060592,1755111061398,-460.0,0.00019452,2]
[379060593,1755111061409,-4058.25,0.00019452,2]
[379060594,1755111061418,-460.0,0.00019452,2]
[379060595,1755111061427,-460.0,0.00019452,2]
[379060596,1755111061436,-460.0,0.00019452,2]
[379060597,1755111061446,-460.0,0.00019452,2]
[379060598,1755111061455,-460.0,0.00019452,2]
[379060599,1755111061464,-460.0,0.00019452,2]
[379060600,1755111061474,-460.0,0.00019452,2]
[379060601,1755111061483,-460.0,0.00019452,2]
[379060602,1755111061493,-460.0,0.00019452,2]
[379060603,1755111061502,-854.77,0.00019452,2]
[379060604,1755111061511,-460.0,0.00019452,2]
[379060605,1755111061521,-460.0,0.00019452,2]
[379060606,1755111061530,-1359.08,0.00019452,2]
[379060607,1755111061540,-482.54,0.00019452,2]
[379060608,1755111061549,-2272.99,0.00019452,2]
[379060609,1755111061558,-460.0,0.00019452,2]
[379060610,1755111061568,-894.82,0.00019452,2]
[379060611,1755111061577,-460.0,0.00019452,2]
[379060612,1755111061587,-916.35,0.00019452,2]
[379060613,1755111061597,-460.0,0.00019452,2]
[379060614,1755111061607,-460.0,0.00019452,2]
[379060615,1755111061616,-529.16,0.00019452,2]
[379060616,1755111061627,-460.0,0.00019452,2]
[379060617,1755111061636,-460.0,0.00019452,2]
[379060618,1755111061647,-460.0,0.00019452,2]
[379060619,1755111061657,-460.0,0.00019452,2]
[379060620,1755111061666,-1313.79,0.00019452,2]
[379060621,1755111061676,-4121.11,0.00019452,2]
[379060622,1755111061685,-719.23,0.00019452,2]
[379060623,1755111061694,-280.55528695,0.00019452,2]
[379060624,1755111061704,-763.3,0.00019452,2]
[379060625,1755111061713,-689.19,0.00019452,2]
[379060626,1755111061723,-465.66,0.00019452,2]
[379060627,1755111061732,-460.0,0.00019452,2]
[379060628,1755111061743,-500.57319792,0.00019452,2]
[379060629,1755111061753,-460.0,0.00019452,2]
[379060630,1755111061762,-460.0,0.00019452,2]
[379060631,1755111061771,-460.0,0.00019452,2]
[379060632,1755111061781,-461.82082709,0.00019452,2]
[379060633,1755111061791,-8448.68,0.00019452,2]
[379060634,1755111061800,-460.0,0.00019452,2]
[379060635,1755111061809,-460.0,0.00019452,2]
[379060636,1755111061819,-460.0,0.00019452,2]
[379060637,1755111061833,-460.0,0.00019452,2]
[379060638,1755111061843,-158.65368744,0.00019452,2]
[379060639,1755111061852,-460.0,0.00019452,2]
[379060640,1755111061861,-729.5,0.00019452,2]
[379060641,1755111061871,-1382.67,0.00019452,2]
[379060642,1755111061880,-460.0,0.00019452,2]
[379060643,1755111061890,-586.58,0.00019452,2]
[379060644,1755111061901,-460.0,0.00019452,2]
[379060645,1755111061912,-460.0,0.00019452,2]
[379060646,1755111061921,-460.0,0.00019452,2]
[379060647,1755111061933,-460.0,0.00019452,2]
[379060648,1755111061943,-2019.38,0.00019452,2]
[379060649,1755111061952,-598.57,0.00019452,2]
[379060650,1755111061962,-460.0,0.00019452,2]
[379060651,1755111061973,-460.0,0.00019452,2]
[379060652,1755111061982,-460.0,0.00019452,2]
[379060653,1755111061992,-460.0,0.00019452,2]
[379060654,1755111062001,-1225.81,0.00019452,2]
[379060655,1755111062012,-469.46,0.00019452,2]
[379060656,1755111062022,-1046.87,0.00019452,2]
[379060657,1755111062033,-460.0,0.00019452,2]
[379060658,1755111062044,-460.0,0.00019452,2]
[379060659,1755111062054,-460.0,0.00019452,2]
[379060660,1755111062064,-460.0,0.00019452,2]
[379060661,1755111062074,-1388.85,0.00019452,2]
[379060662,1755111062083,-460.0,0.00019452,2]
[379060663,1755111062093,-1104.55,0.00019452,2]
[379060664,1755111062103,-460.0,0.00019452,2]
[379060665,1755111062113,-460.0,0.00019452,2]
[379060666,1755111062123,-543.86,0.00019452,2]
[379060667,1755111062132,-460.0,0.00019452,2]
[379060668,1755111062142,-480.40445149,0.00019452,2]
[379060669,1755111062151,-1000.0,0.00019452,2]
[379060670,1755111062165,-460.0,0.00019452,2]
[379060671,1755111062174,-999.45,0.00019452,2]
[379060672,1755111062184,-460.0,0.00019452,2]
[379060673,1755111062193,-881.0,0.00019459,2]
[379060674,1755111062202,-500.0,0.00019473,2]
[379060675,1755111062211,-552.65656985,0.00019473,2]
[379060676,1755111062220,-500.0,0.00019473,2]
[379060677,1755111062232,-881.0,0.00019477,2]
[379060678,1755111062241,-208.18217949,0.00019508,2]
[379060679,1755111062251,-881.0,0.00019563,2]
[379060680,1755111062260,-1500.0,0.00019568,2]
[379060681,1755111062269,-485.42941603,0.00019568,2]
[379060682,1755111062278,-500.0,0.00019568,2]
[379060683,1755111062287,-915.04900568,0.0001958,2]
[379060684,1755111062297,-881.0,0.0001959,2]
[379060685,1755111062306,-4197.95163045,0.00019597,2]
[379060686,1755111062315,-881.0,0.00019612,2]